bitfinex-derivatives/quotes_ETHF0:USTF0_20230105
["timestamp","ask_amount","ask_price","bid_price","bid_amount"]
[1672916368881,4.1814,1251.8,1251.6,1.19474867]
[1672916369091,3.2078,1251.7,1251.6,1.19474867]
[1672916369620,3.2078,1251.7,1251.4,3.80340253]
[1672916369621,3.2078,1251.7,1251.5,1.19474867]
[1672916369825,0.5,1251.6,1251.5,1.19474867]
[1672916370342,3.7078,1251.6,1251.5,1.19474867]
[1672916370766,0.5,1251.6,1251.5,1.19474867]
[1672916370979,3.7078,1251.6,1251.5,1.19474867]
[1672916380333,0.5,1251.6,1251.5,1.19474867]
[1672916380539,3.7078,1251.6,1251.5,1.19474867]
[1672916381177,0.5,1251.6,1251.5,1.19474867]
[1672916381708,3.7078,1251.6,1251.5,1.19474867]
[1672916382226,0.5,1251.6,1251.5,1.19474867]
[1672916382650,3.7078,1251.6,1251.5,1.19474867]
[1672916382858,0.5,1251.6,1251.5,1.19474867]
[1672916383072,3.7078,1251.6,1251.5,1.19474867]
[1672916383491,0.5,1251.6,1251.5,1.19474867]
[1672916383804,3.7078,1251.6,1251.5,1.19474867]
[1672916386955,0.5,1251.6,1251.5,1.19474867]
[1672916387164,3.7078,1251.6,1251.5,1.19474867]
[1672916387375,0.5,1251.6,1251.5,1.19474867]
[1672916387583,3.7078,1251.6,1251.5,1.19474867]
[1672916390213,0.5,1251.6,1251.5,1.19474867]
[1672916390425,3.7078,1251.6,1251.5,1.19474867]
[1672916391155,0.5,1251.6,1251.5,1.19474867]
[1672916391472,3.7078,1251.6,1251.5,1.19474867]
[1672916391682,0.5,1251.6,1251.5,1.19474867]
[1672916391884,3.7078,1251.6,1251.5,1.19474867]
[1672916393045,0.5,1251.6,1251.5,1.19474867]
[1672916393256,3.7078,1251.6,1251.5,1.19474867]
[1672916394418,3.7078,1251.6,1251.5,2.98835683]
[1672916394939,3.7078,1251.6,1251.5,1.19474867]
[1672916395467,3.7078,1251.6,1251.5,2.98835683]
[1672916395779,3.7078,1251.6,1251.5,1.19474867]
[1672916396731,0.5,1251.6,1251.5,1.19474867]
[1672916397147,3.7078,1251.6,1251.5,1.19474867]
[1672916397564,0.5,1251.6,1251.5,1.19474867]
[1672916397874,3.7078,1251.6,1251.5,1.19474867]
[1672916398613,3.7078,1251.6,1251.5,2.98835683]
[1672916399033,0.5,1251.6,1251.5,2.98835683]
[1672916399242,3.7078,1251.6,1251.5,2.98835683]
[1672916400502,3.2078,1251.6,1251.5,1.79360816]
[1672916401447,3.2078,1251.6,1251.5,2.98942567]
[1672916402188,3.0,1251.8,1251.5,2.98942567]
[1672916402504,3.2078,1251.6,1251.5,2.98942567]
[1672916403245,3.2078,1251.6,1251.5,1.79360816]
[1672916406925,3.0,1251.8,1251.5,1.79360816]
[1672916407134,3.0,1251.8,1251.6,1.19612288]
[1672916407349,3.2078,1251.7,1251.6,1.19612288]
[1672916407969,3.0,1251.8,1251.6,1.19612288]
[1672916408185,3.2078,1251.7,1251.6,1.19612288]
[1672916408818,3.2078,1251.7,1251.6,2.79360816]
[1672916411115,3.2078,1251.7,1251.6,1.79360816]
[1672916411439,3.2078,1251.7,1251.6,2.98897095]
[1672916414712,3.2078,1251.7,1251.6,1.19536279]
[1672916415445,3.2078,1251.7,1251.6,2.98897095]
[1672916417653,3.2078,1251.7,1251.6,1.19536279]
[1672916419329,3.0,1251.8,1251.6,1.19536279]
[1672916419858,3.2078,1251.7,1251.6,1.19536279]
[1672916420065,3.2078,1251.7,1251.6,2.98897095]
[1672916420276,3.2078,1251.7,1251.6,1.19536279]
[1672916424907,3.0,1251.8,1251.6,1.19536279]
[1672916425321,3.2078,1251.7,1251.6,1.19536279]
[1672916430788,3.0,1251.8,1251.6,1.19536279]
[1672916430997,3.2078,1251.7,1251.6,1.19536279]
[1672916436359,3.2078,1251.7,1251.6,2.98897095]
[1672916438886,10.245,1251.9,1251.6,2.38701826]
[1672916439098,10.245,1251.9,1251.8,1.19520386]
[1672916439303,6.2078,1251.9,1251.8,1.19520386]
[1672916439520,6.2078,1251.9,1251.7,2.98800965]
[1672916440149,6.2078,1251.9,1251.7,1.19520386]
[1672916442883,6.2078,1251.9,1251.6,2.98800965]
[1672916443088,3.2078,1251.7,1251.6,2.98800965]
[1672916448665,3.0,1251.9,1251.6,2.98800965]
[1672916448862,3.2078,1251.7,1251.6,2.98800965]
[1672916451813,3.0,1251.9,1251.6,2.98800965]
[1672916452015,3.2078,1251.7,1251.6,2.98800965]
[1672916452225,3.0,1251.9,1251.6,2.98800965]
[1672916452436,3.2078,1251.7,1251.6,2.98800965]
[1672916453595,3.2078,1251.7,1251.6,1.79280579]
[1672916454852,3.0,1251.9,1251.6,1.79280579]
[1672916455064,3.0,1251.9,1251.7,1.19550572]
[1672916455265,3.2078,1251.8,1251.7,1.19550572]
[1672916455479,3.2078,1251.8,1251.7,2.19550572]
[1672916455691,3.2078,1251.8,1251.7,1.19550572]
[1672916464309,3.0,1251.9,1251.7,1.19550572]
[1672916464627,3.2078,1251.8,1251.7,1.19550572]
[1672916466729,3.0,1251.9,1251.7,1.19550572]
[1672916467573,3.2078,1251.8,1251.7,1.19550572]
[1672916472093,3.0,1251.9,1251.7,1.19550572]
[1672916472507,3.2078,1251.8,1251.7,1.19550572]
[1672916474937,3.0,1251.9,1251.7,1.19550572]
[1672916475249,3.2078,1251.8,1251.7,1.19550572]
[1672916475453,3.2078,1251.8,1251.6,2.98831151]
[1672916475984,3.0,1251.7,1251.6,2.98831151]
[1672916479456,3.0,1251.7,1251.6,1.79280579]
[1672916480193,6.2078,1251.7,1251.6,1.79280579]
[1672916480925,6.2078,1251.7,1251.6,2.98945561]
[1672916481145,6.2078,1251.7,1251.6,2.98948317]
[1672916481351,6.2078,1251.7,1251.6,1.79280579]
[1672916482409,6.2078,1251.7,1251.6,2.98949277]
[1672916482619,6.2078,1251.7,1251.6,4.17982405]
[1672916482929,6.2078,1251.7,1251.6,1.79280579]
[1672916485879,6.2078,1251.7,1251.6,4.17982405]
[1672916486611,6.2078,1251.7,1251.6,1.79280579]
[1672916486822,6.2078,1251.7,1251.6,4.17982405]
[1672916487553,6.2078,1251.7,1251.6,1.79280579]
[1672916488610,3.0,1251.7,1251.6,1.79280579]
[1672916488819,6.2078,1251.7,1251.6,4.17982405]
[1672916489443,6.2078,1251.7,1251.6,1.79280579]
[1672916489872,6.2078,1251.7,1251.6,4.17982405]
[1672916490074,6.2078,1251.7,1251.6,1.79280579]
[1672916500497,6.2078,1251.7,1251.6,4.17982405]
[1672916500810,6.2078,1251.7,1251.6,1.79280579]
[1672916503337,6.2078,1251.7,1251.6,4.17982405]
[1672916505014,6.2078,1251.7,1251.6,2.38701826]
[1672916505431,6.2078,1251.7,1251.6,4.18328542]
[1672916507542,6.2078,1251.7,1251.6,1.79626716]
[1672916509964,3.0,1251.7,1251.6,1.79626716]
[1672916510177,6.2078,1251.7,1251.6,1.79626716]
[1672916513217,3.0,1251.7,1251.6,1.79626716]
[1672916513433,6.2078,1251.7,1251.6,1.79626716]
[1672916514584,3.0,1251.7,1251.6,1.79626716]
[1672916514902,6.2078,1251.7,1251.6,1.79626716]
[1672916515317,6.2078,1251.7,1251.6,2.99429113]
[1672916519419,3.0,1251.7,1251.6,2.99429113]
[1672916519637,6.2078,1251.7,1251.6,2.99429113]
[1672916521733,3.0,1251.7,1251.6,2.99429113]
[1672916522052,6.2078,1251.7,1251.6,2.99429113]
[1672916522465,3.0,1251.7,1251.6,2.99429113]
[1672916522681,6.2078,1251.7,1251.6,2.99429113]
[1672916524050,6.2078,1251.7,1251.6,1.19802397]
[1672916525303,6.2078,1251.7,1251.5,2.99429113]
[1672916525731,3.0,1251.7,1251.5,2.99429113]
[1672916525941,3.2078,1251.6,1251.5,2.99429113]
[1672916526991,3.0,1251.7,1251.5,2.99429113]
[1672916527303,3.2078,1251.6,1251.5,2.99429113]
[1672916530463,3.2078,1251.6,1251.5,1.79626716]
[1672916530663,3.2078,1251.6,1251.5,2.99349018]
[1672916534556,3.2078,1251.6,1251.5,2.98721296]
[1672916534767,3.2078,1251.6,1251.5,1.19722302]
[1672916534974,0.5,1251.5,1251.4,1.78998994]
[1672916535607,0.5,1251.5,1251.4,5.38701826]
[1672916537600,3.7078,1251.5,1251.4,5.38701826]
[1672916537810,3.2078,1251.5,1251.4,5.38701826]
[1672916538027,3.2078,1251.5,1251.4,2.38701826]
[1672916538657,3.0,1251.7,1251.4,2.38701826]
[1672916538870,3.0,1251.7,1251.5,1.19696508]
[1672916539082,3.2078,1251.6,1251.5,1.19696508]
[1672916541599,3.0,1251.7,1251.5,1.19696508]
[1672916541810,3.2078,1251.6,1251.5,1.19696508]
[1672916542240,3.0,1251.7,1251.5,1.19696508]
[1672916542450,3.2078,1251.6,1251.5,1.19696508]
[1672916544558,3.0,1251.7,1251.5,1.19696508]
[1672916544766,3.2078,1251.6,1251.5,1.19696508]
[1672916546329,3.0,1251.7,1251.5,1.19696508]
[1672916546550,3.2078,1251.6,1251.5,1.19696508]
[1672916546758,3.0,1251.7,1251.5,1.19696508]
[1672916547074,3.2078,1251.6,1251.5,1.19696508]
[1672916548862,3.0,1251.7,1251.5,1.19696508]
[1672916549073,3.2078,1251.6,1251.5,1.19696508]
[1672916555807,10.995,1251.7,1251.5,1.19696508]
[1672916556021,3.2078,1251.6,1251.5,1.19696508]
[1672916560735,3.2078,1251.6,1251.4,2.38701826]
[1672916560951,3.2078,1251.6,1251.5,1.19748515]
[1672916561165,3.2078,1251.6,1251.5,3.0]
[1672916561903,3.2078,1251.6,1251.5,1.19748265]
[1672916563059,3.2078,1251.6,1251.5,2.38701826]
[1672916563271,3.2078,1251.6,1251.5,3.80334714]
[1672916563472,3.2078,1251.6,1251.5,2.38701826]
[1672916564846,3.2078,1251.6,1251.4,6.37079109]
[1672916565056,3.2078,1251.6,1251.5,2.38701826]
[1672916566533,3.0,1251.7,1251.5,2.38701826]
[1672916566742,3.0,1251.7,1251.6,1.19705191]
[1672916566945,6.2078,1251.7,1251.6,1.19705191]
[1672916573778,3.0,1251.7,1251.6,1.19705191]
[1672916573989,6.2078,1251.7,1251.6,1.19705191]
[1672916581768,3.0,1251.7,1251.6,1.19705191]
[1672916581978,6.2078,1251.7,1251.6,1.19705191]
[1672916583768,3.0,1251.7,1251.6,1.19705191]
[1672916583977,6.2078,1251.7,1251.6,1.19705191]
[1672916584717,3.0,1251.7,1251.6,1.19705191]
[1672916585130,6.2078,1251.7,1251.6,1.19705191]
[1672916585445,3.0,1251.7,1251.6,1.19705191]
[1672916585658,6.2078,1251.7,1251.6,1.19705191]
[1672916586706,3.0,1251.7,1251.6,1.19705191]
[1672916586927,6.2078,1251.7,1251.6,1.19705191]
[1672916591961,3.0,1251.7,1251.6,1.19705191]
[1672916592281,6.2078,1251.7,1251.6,1.19705191]
[1672916592589,3.0,1251.7,1251.6,1.19705191]
[1672916592797,6.2078,1251.7,1251.6,1.19705191]
[1672916593535,3.0,1251.7,1251.6,1.19705191]
[1672916593750,6.2078,1251.7,1251.6,1.19705191]
[1672916594588,3.0,1251.7,1251.6,1.19705191]
[1672916594801,6.2078,1251.7,1251.6,1.19705191]
[1672916595211,6.2078,1251.7,1251.6,2.9917185]
[1672916596687,3.0,1251.7,1251.6,2.9917185]
[1672916597001,6.2078,1251.7,1251.6,2.9917185]
[1672916598991,3.2078,1251.7,1251.6,2.9917185]
[1672916599620,7.4625,1251.9,1251.6,2.9917185]
[1672916599839,3.2078,1251.7,1251.6,2.9917185]
[1672916600154,7.4625,1251.9,1251.6,2.9917185]
[1672916600574,3.2078,1251.7,1251.6,2.9917185]
[1672916600886,3.2078,1251.7,1251.6,1.79466659]
[1672916601308,3.2078,1251.7,1251.6,2.99191226]
[1672916602783,3.2078,1251.7,1251.6,1.79466659]
[1672916603620,3.2078,1251.7,1251.6,2.99184965]
[1672916604040,3.2078,1251.7,1251.6,1.79466659]
[1672916605094,3.2078,1251.7,1251.6,2.99183737]
[1672916609615,7.4625,1251.9,1251.6,2.99183737]
[1672916609825,3.2078,1251.7,1251.6,2.99183737]
[1672916610351,7.4625,1251.9,1251.6,2.99183737]
[1672916610563,3.2078,1251.7,1251.6,1.19717078]
[1672916616756,7.4625,1251.9,1251.6,1.19717078]
[1672916616975,3.2078,1251.7,1251.6,1.19717078]
[1672916620440,7.4625,1251.9,1251.6,1.19717078]
[1672916620650,3.2078,1251.7,1251.6,1.19717078]
[1672916621489,7.4625,1251.9,1251.6,1.19717078]
[1672916621805,3.2078,1251.7,1251.6,1.19717078]
[1672916622964,7.4625,1251.9,1251.6,1.19717078]
[1672916623279,3.2078,1251.7,1251.6,1.19717078]
[1672916626860,15.4575,1251.9,1251.6,1.19717078]
[1672916627698,3.2078,1251.7,1251.6,1.19717078]
[1672916627907,3.0,1251.6,1251.5,2.9926281]
[1672916628118,6.2078,1251.6,1251.5,2.9926281]
[1672916628646,6.2078,1251.6,1251.5,2.99204327]
[1672916630433,3.0,1251.6,1251.5,2.99204327]
[1672916630636,6.2078,1251.6,1251.5,2.99204327]
[1672916631372,3.0,1251.6,1251.5,2.99204327]
[1672916631588,6.2078,1251.6,1251.5,2.99204327]
[1672916632011,3.0,1251.6,1251.5,2.99204327]
[1672916632324,6.2078,1251.6,1251.5,2.99204327]
[1672916632535,3.0,1251.6,1251.5,2.99204327]
[1672916632852,6.2078,1251.6,1251.5,2.99204327]
[1672916633053,3.0,1251.6,1251.5,2.99204327]
[1672916633265,6.2078,1251.6,1251.5,2.99204327]
[1672916633584,3.0,1251.6,1251.5,2.99204327]
[1672916633796,6.2078,1251.6,1251.5,2.99204327]
[1672916636540,3.0,1251.6,1251.5,2.99204327]
[1672916637158,6.2078,1251.6,1251.5,2.99204327]
[1672916637582,3.0,1251.6,1251.5,2.99204327]
[1672916637897,6.2078,1251.6,1251.5,2.99204327]
[1672916638109,3.0,1251.6,1251.5,2.99204327]
[1672916638317,3.2078,1251.6,1251.5,2.99204327]
[1672916638528,3.2078,1251.6,1251.5,1.79545732]
[1672916639686,15.4575,1251.9,1251.5,1.79545732]
[1672916639889,3.2078,1251.6,1251.5,1.79545732]
[1672916640835,15.4575,1251.9,1251.5,1.79545732]
[1672916641046,15.4575,1251.9,1251.6,1.19630992]
[1672916641261,3.2078,1251.7,1251.6,1.19630992]
[1672916643259,15.4575,1251.9,1251.6,1.19630992]
[1672916643471,3.2078,1251.7,1251.6,1.19630992]
[1672916644409,15.4575,1251.9,1251.6,1.19630992]
[1672916644626,3.2078,1251.7,1251.6,1.19630992]
[1672916647365,15.4575,1251.9,1251.6,1.19630992]
[1672916647575,3.2078,1251.7,1251.6,1.19630992]
[1672916649679,3.2078,1251.7,1251.6,2.99176724]
[1672916651251,15.4575,1251.9,1251.6,2.99176724]
[1672916651463,3.2078,1251.7,1251.6,2.99176724]
[1672916651666,3.2078,1251.7,1251.6,1.19630992]
[1672916653673,15.4575,1251.9,1251.6,1.19630992]
[1672916653876,3.2078,1251.7,1251.6,1.19630992]
[1672916654397,15.4575,1251.9,1251.6,1.19630992]
[1672916654820,3.2078,1251.7,1251.6,1.19630992]
[1672916656295,15.4575,1251.9,1251.6,1.19630992]
[1672916656500,3.2078,1251.7,1251.6,1.19630992]
[1672916657980,15.4575,1251.9,1251.6,1.19630992]
[1672916658197,3.2078,1251.7,1251.6,1.19630992]
[1672916659456,15.4575,1251.9,1251.6,1.19630992]
[1672916659772,3.2078,1251.7,1251.6,1.19630992]
[1672916661344,15.4575,1251.9,1251.6,1.19630992]
[1672916661561,3.2078,1251.7,1251.6,1.19630992]
[1672916661878,15.4575,1251.9,1251.6,1.19630992]
[1672916662089,3.2078,1251.7,1251.6,1.19630992]
[1672916662401,15.4575,1251.9,1251.6,1.19630992]
[1672916662815,3.2078,1251.7,1251.6,1.19630992]
[1672916663124,15.4575,1251.9,1251.6,1.19630992]
[1672916663338,3.2078,1251.7,1251.6,1.19630992]
[1672916664187,15.4575,1251.9,1251.6,1.19630992]
[1672916664391,3.2078,1251.7,1251.6,1.19630992]
[1672916665448,15.4575,1251.9,1251.6,1.19630992]
[1672916665656,3.2078,1251.7,1251.6,1.19630992]
[1672916666711,15.4575,1251.9,1251.6,1.19630992]
[1672916666918,3.2078,1251.7,1251.6,1.19630992]
[1672916669332,15.4575,1251.9,1251.6,1.19630992]
[1672916669872,3.2078,1251.7,1251.6,1.19630992]
[1672916670503,15.4575,1251.9,1251.6,1.19630992]
[1672916671024,3.2078,1251.7,1251.6,1.19630992]
[1672916671233,3.0,1251.6,1251.5,2.9894804]
[1672916673336,6.2078,1251.6,1251.5,2.9894804]
[1672916674477,3.0,1251.6,1251.5,2.9894804]
[1672916675015,6.2078,1251.6,1251.5,2.9894804]
[1672916675325,6.2078,1251.6,1251.5,1.19402308]
[1672916675743,6.2078,1251.6,1251.5,2.9894804]
[1672916675956,6.2078,1251.6,1251.5,1.19402308]
[1672916677641,6.2078,1251.6,1251.5,2.9894804]
[1672916679840,6.2078,1251.6,1251.5,1.19402308]
[1672916680374,3.0,1251.6,1251.5,1.19402308]
[1672916680578,6.2078,1251.6,1251.5,1.19402308]
[1672916680896,3.0,1251.6,1251.5,1.19402308]
[1672916681107,6.2078,1251.6,1251.5,1.19402308]
[1672916681418,3.0,1251.6,1251.5,1.19402308]
[1672916681635,6.2078,1251.6,1251.5,1.19402308]
[1672916683106,3.0,1251.6,1251.5,1.19402308]
[1672916683317,6.2078,1251.6,1251.5,1.19402308]
[1672916686155,3.0,1251.6,1251.5,1.19402308]
[1672916686362,6.2078,1251.6,1251.5,1.19402308]
[1672916691090,6.2078,1251.6,1251.5,2.9894804]
[1672916694454,6.2078,1251.6,1251.5,1.19402308]
[1672916694663,6.2078,1251.6,1251.5,2.9894804]
[1672916694878,6.2078,1251.6,1251.5,1.19402308]
[1672916695295,6.2078,1251.6,1251.5,2.9894804]
[1672916696760,3.0,1251.6,1251.5,2.9894804]
[1672916697076,6.2078,1251.6,1251.4,1.41647504]
[1672916697291,6.2078,1251.6,1251.5,1.79606965]
[1672916698338,3.0,1251.6,1251.5,1.79606965]
[1672916698548,6.2078,1251.6,1251.5,1.79606965]
[1672916701074,6.2078,1251.6,1251.4,1.79606965]
[1672916706436,6.2078,1251.6,1251.4,4.19082918]
[1672916706641,6.2078,1251.6,1251.4,1.79606965]
[1672916706853,6.2078,1251.6,1251.4,4.19082918]
[1672916707061,6.2078,1251.6,1251.4,1.79606965]
[1672916708221,3.2078,1251.5,1251.4,1.79606965]
[1672916708640,3.0,1251.6,1251.4,1.79606965]
[1672916708955,3.2078,1251.5,1251.4,1.79606965]
[1672916709167,3.0,1251.6,1251.4,1.79606965]
[1672916709481,3.2078,1251.5,1251.4,1.79606965]
[1672916710320,3.0,1251.6,1251.4,1.79606965]
[1672916710841,3.2078,1251.5,1251.4,1.79606965]
[1672916711051,3.0,1251.6,1251.4,1.79606965]
[1672916711261,3.2078,1251.5,1251.4,1.79606965]
[1672916711897,3.0,1251.6,1251.4,1.79606965]
[1672916712110,3.2078,1251.5,1251.4,1.79606965]
[1672916712318,3.0,1251.6,1251.4,1.79606965]
[1672916712846,3.2078,1251.5,1251.4,1.79606965]
[1672916714535,3.0,1251.6,1251.4,1.79606965]
[1672916714838,3.2078,1251.5,1251.4,1.79606965]
[1672916716315,3.0,1251.6,1251.4,1.79606965]
[1672916716526,3.2078,1251.5,1251.4,1.79606965]
[1672916717465,3.0,1251.6,1251.4,1.79606965]
[1672916717890,3.2078,1251.5,1251.4,1.79606965]
[1672916725671,3.2078,1251.5,1251.4,4.19082918]
[1672916728191,10.995,1251.6,1251.4,4.19082918]
[1672916728406,3.2078,1251.5,1251.4,4.19082918]
[1672916729029,3.2078,1251.5,1251.4,1.79606965]
[1672916729243,3.2078,1251.5,1251.4,4.19082918]
[1672916730825,3.2078,1251.5,1251.4,1.79606965]
[1672916732822,10.995,1251.6,1251.4,1.79606965]
[1672916733029,3.2078,1251.5,1251.4,1.79606965]
[1672916734505,10.995,1251.6,1251.4,1.79606965]
[1672916734713,3.2078,1251.5,1251.4,1.79606965]
[1672916735557,10.995,1251.6,1251.4,1.79606965]
[1672916735768,3.2078,1251.5,1251.4,1.79606965]
[1672916736082,10.995,1251.6,1251.4,1.79606965]
[1672916736294,3.2078,1251.5,1251.4,1.79606965]
[1672916736820,10.995,1251.6,1251.4,1.79606965]
[1672916737029,3.2078,1251.5,1251.4,1.79606965]
[1672916737342,3.2078,1251.5,1251.4,4.19082918]
[1672916738179,10.995,1251.6,1251.4,4.19082918]
[1672916738401,3.2078,1251.5,1251.4,4.19082918]
[1672916739866,10.995,1251.6,1251.4,4.19082918]
[1672916740179,3.2078,1251.5,1251.4,4.19082918]
[1672916740809,10.995,1251.6,1251.4,4.19082918]
[1672916741021,3.2078,1251.5,1251.4,4.19082918]
[1672916743754,10.995,1251.6,1251.4,4.19082918]
[1672916744492,3.2078,1251.5,1251.4,4.19082918]
[1672916746587,10.995,1251.6,1251.4,4.19082918]
[1672916746802,3.2078,1251.5,1251.4,4.19082918]
[1672916747013,10.995,1251.6,1251.4,4.19082918]
[1672916747328,3.2078,1251.5,1251.4,4.19082918]
[1672916748063,10.995,1251.6,1251.4,4.19082918]
[1672916748273,3.2078,1251.5,1251.4,4.19082918]
[1672916748587,3.2078,1251.5,1251.4,4.18503479]
[1672916750693,10.995,1251.6,1251.4,4.18503479]
[1672916750893,3.2078,1251.5,1251.4,4.18503479]
[1672916752681,3.2078,1251.5,1251.4,6.80472872]
[1672916752892,3.2078,1251.5,1251.4,3.81127931]
[1672916753215,3.2078,1251.5,1251.4,2.39475953]
[1672916753638,3.0,1251.6,1251.4,2.39475953]
[1672916753846,3.2078,1251.5,1251.4,2.39475953]
[1672916754367,3.0,1251.6,1251.4,2.39475953]
[1672916754690,3.2078,1251.5,1251.4,2.39475953]
[1672916755527,3.0,1251.6,1251.4,2.39475953]
[1672916756367,3.2078,1251.5,1251.4,2.39475953]
[1672916757211,3.0,1251.6,1251.4,2.39475953]
[1672916757520,3.2078,1251.5,1251.4,2.39475953]
[1672916757733,3.0,1251.6,1251.4,2.39475953]
[1672916758048,3.2078,1251.5,1251.4,2.39475953]
[1672916760466,3.0,1251.6,1251.4,2.39475953]
[1672916760881,3.2078,1251.5,1251.4,2.39475953]
[1672916762566,3.2078,1251.5,1251.3,5.38820894]
[1672916762771,3.2078,1251.5,1251.4,2.39475953]
[1672916766873,3.0,1251.6,1251.4,2.39475953]
[1672916767084,3.2078,1251.5,1251.4,2.39475953]
[1672916767716,3.0,1251.6,1251.4,2.39475953]
[1672916767927,3.2078,1251.5,1251.4,2.39475953]
[1672916771390,3.0,1251.6,1251.4,2.39475953]
[1672916771607,3.2078,1251.5,1251.4,2.39475953]
[1672916771810,3.0,1251.6,1251.4,2.39475953]
[1672916772441,3.2078,1251.5,1251.4,2.39475953]
[1672916773287,3.0,1251.6,1251.4,2.39475953]
[1672916773492,3.2078,1251.5,1251.4,2.39475953]
[1672916777175,3.0,1251.6,1251.4,2.39475953]
[1672916777597,3.2078,1251.5,1251.4,2.39475953]
[1672916780434,3.2078,1251.5,1251.3,5.38820894]
[1672916780643,3.2078,1251.5,1251.3,6.80471276]
[1672916782220,3.0,1251.6,1251.3,6.80471276]
[1672916782422,3.2078,1251.4,1251.3,6.80471276]
[1672916784109,3.2078,1251.4,1251.3,4.40995323]
[1672916784523,3.0,1251.6,1251.3,4.40995323]
[1672916784738,3.2078,1251.5,1251.4,5.39547446]
[1672916784951,3.2078,1251.5,1251.4,6.81197828]
[1672916785371,3.2078,1251.5,1251.4,5.39547446]
[1672916786526,3.2078,1251.5,1251.4,2.39547446]
[1672916786942,3.0,1251.6,1251.4,2.39547446]
[1672916787475,2.9964632,1251.6,1251.5,3.0]
[1672916788002,6.2042632,1251.6,1251.4,3.39547446]
[1672916788314,2.9964632,1251.6,1251.4,3.39547446]
[1672916788524,3.2078,1251.5,1251.4,3.39547446]
[1672916788727,3.2078,1251.5,1251.4,2.39547446]
[1672916789790,2.9964632,1251.6,1251.4,2.39547446]
[1672916790002,3.2078,1251.5,1251.4,2.39547446]
[1672916790319,2.9964632,1251.6,1251.4,2.39547446]
[1672916790727,3.2078,1251.5,1251.4,2.39547446]
[1672916791044,2.9964632,1251.6,1251.4,2.39547446]
[1672916791252,2.9964632,1251.6,1251.5,3.6977471]
[1672916791465,6.2042632,1251.6,1251.5,1.1977471]
[1672916792841,2.9964632,1251.6,1251.5,1.1977471]
[1672916793048,6.2042632,1251.6,1251.5,1.1977471]
[1672916797048,2.9964632,1251.6,1251.5,1.1977471]
[1672916797459,6.2042632,1251.6,1251.5,1.1977471]
[1672916798404,2.9964632,1251.6,1251.5,1.1977471]
[1672916798619,6.2042632,1251.6,1251.5,1.1977471]
[1672916799355,2.9964632,1251.6,1251.5,1.1977471]
[1672916799567,6.2042632,1251.6,1251.5,1.1977471]
[1672916810285,6.2042632,1251.6,1251.4,2.99438613]
[1672916811545,6.2042632,1251.6,1251.5,1.1977471]
[1672916823748,2.9964632,1251.6,1251.5,1.1977471]
[1672916823952,6.2042632,1251.6,1251.5,1.1977471]
[1672916824690,2.9964632,1251.6,1251.5,1.1977471]
[1672916824907,6.2042632,1251.6,1251.5,1.1977471]
[1672916827421,2.9964632,1251.6,1251.5,1.1977471]
[1672916827949,6.2042632,1251.6,1251.5,1.1977471]
[1672916828370,2.9964632,1251.6,1251.5,1.1977471]
[1672916828582,6.2042632,1251.6,1251.5,1.1977471]
[1672916830158,6.2042632,1251.6,1251.5,2.99438613]
[1672916830679,6.2042632,1251.6,1251.5,1.79663903]
[1672916831836,6.2042632,1251.6,1251.5,2.99421753]
[1672916835002,6.2042632,1251.6,1251.5,1.79663903]
[1672916837739,2.9964632,1251.6,1251.5,1.79663903]
[1672916838052,6.2042632,1251.6,1251.5,1.79663903]
[1672916838674,3.2078,1251.6,1251.5,1.79663903]
[1672916842150,3.0,1251.7,1251.5,1.79663903]
[1672916842351,3.0,1251.7,1251.6,1.19672691]
[1672916842561,6.2078,1251.7,1251.6,1.19672691]
[1672916844357,6.2078,1251.7,1251.5,5.99336594]
[1672916844677,6.2078,1251.7,1251.5,2.99336594]
[1672916844988,3.2078,1251.6,1251.5,2.99336594]
[1672916846463,3.0,1251.7,1251.5,2.99336594]
[1672916846775,3.2078,1251.6,1251.5,2.99336594]
[1672916849404,3.0,1251.7,1251.5,2.99336594]
[1672916849713,3.2078,1251.6,1251.5,2.99336594]
[1672916851080,3.0,1251.7,1251.5,2.99336594]
[1672916851294,3.2078,1251.6,1251.5,2.99336594]
[1672916851921,3.0,1251.7,1251.5,2.99336594]
[1672916852132,3.2078,1251.6,1251.5,2.99336594]
[1672916853811,3.2078,1251.6,1251.5,1.19672691]
[1672916855492,3.0,1251.7,1251.5,1.19672691]
[1672916855709,3.2078,1251.6,1251.5,1.19672691]
[1672916856544,3.2078,1251.6,1251.5,2.99336594]
[1672916857398,3.0,1251.7,1251.5,2.99336594]
[1672916857608,3.2078,1251.6,1251.5,2.99336594]
[1672916858236,3.2078,1251.6,1251.5,1.19672691]
[1672916858765,3.0,1251.7,1251.5,1.19672691]
[1672916858968,3.2078,1251.6,1251.5,1.19672691]
[1672916865914,3.0,1251.7,1251.5,1.19424845]
[1672916866228,3.2078,1251.6,1251.5,1.19424845]
[1672916870123,3.0,1251.7,1251.5,1.19424845]
[1672916870326,3.2078,1251.6,1251.5,1.19424845]
[1672916871487,3.0,1251.7,1251.5,1.19424845]
[1672916871692,3.2078,1251.6,1251.5,1.19424845]
[1672916873265,3.0,1251.7,1251.5,1.19424845]
[1672916873471,3.2078,1251.6,1251.5,1.19424845]
[1672916874635,3.0,1251.7,1251.5,1.19424845]
[1672916874852,3.2078,1251.6,1251.5,1.19424845]
[1672916875054,3.0,1251.7,1251.5,1.19424845]
[1672916875264,3.2078,1251.6,1251.5,1.19424845]
[1672916882416,3.2078,1251.6,1251.4,1.79663903]
[1672916882630,0.5,1251.5,1251.4,1.79663903]
[1672916885149,0.5,1251.5,1251.4,4.19211349]
[1672916885366,0.5,1251.5,1251.4,1.79663903]
[1672916886728,3.7078,1251.5,1251.4,1.79663903]
[1672916886940,0.5,1251.5,1251.4,1.79663903]
[1672916887365,3.7078,1251.5,1251.4,1.79663903]
[1672916889783,3.7078,1251.5,1251.4,4.19211349]
[1672916889992,0.5,1251.5,1251.4,4.19211349]
[1672916890199,3.7078,1251.5,1251.4,4.19211349]
[1672916890515,3.7078,1251.5,1251.4,1.79663903]
[1672916891573,3.7078,1251.5,1251.4,4.19211349]
[1672916891984,0.5,1251.5,1251.4,4.19211349]